fUST/lending_fUST_20240412
["ID","MTS","AMOUNT","RATE_DAILY","PERIOD"]
[322257512,1712916648912,-903.78,0.00030958,7]
[322257514,1712916648921,-500.0,0.00030958,7]
[322257516,1712916648930,-500.0,0.00030958,7]
[322257518,1712916648941,-500.0,0.00030958,7]
[322257520,1712916648950,-500.0,0.00030958,7]
[322257522,1712916648959,-572.29,0.00030958,7]
[322257524,1712916648968,-3047.73381047,0.00031,30]
[322257526,1712916648977,-1030.63790559,0.00031,4]
[322257528,1712916648986,-500.0,0.0003123,7]
[322257530,1712916648995,-1170.56,0.0003123,7]
[322257532,1712916649005,-500.0,0.00031231,7]
[322257534,1712916649015,-523.99,0.00031231,7]
[322257536,1712916649023,-569.98445713,0.00031231,2]
[322257538,1712916649032,-903.78,0.00031232,7]
[322257540,1712916649042,-500.0,0.00031232,7]
[322257542,1712916649051,-500.0,0.00031232,7]
[322257544,1712916649061,-500.0,0.00031232,7]
[322257546,1712916649070,-500.0,0.00031232,7]
[322257548,1712916649079,-572.29,0.00031232,7]
[322257550,1712916649088,-702.39922259,0.00031499,4]
[322257552,1712916649097,-913.72837,0.000315,2]
[322257554,1712916649106,-373.54,0.00031504,7]
[322257556,1712916649115,-1170.56,0.00031504,7]
[322257558,1712916649124,-241.66904712,0.00031505,7]
[322257560,1712916649133,-523.99,0.00031505,7]
[322257562,1712916649143,-903.78,0.00031506,7]
[322257564,1712916649151,-500.0,0.00031506,7]
[322257566,1712916649161,-500.0,0.00031506,7]
[322257568,1712916649170,-572.29,0.00031506,7]
[322257570,1712916649179,-171.0,0.00031644,2]
[322257572,1712916649188,-1170.56,0.00031778,7]
[322257574,1712916649197,-523.99,0.00031779,7]
[322257576,1712916649206,-903.78,0.0003178,7]
[322257578,1712916649215,-392.67863719,0.0003178,7]
[322257580,1712916649224,-572.29,0.0003178,7]
[322257582,1712916649233,-1210.78934384,0.00032,2]
[322257584,1712916649243,-190.9330142,0.00032,4]
[322257586,1712916649252,-1170.56,0.00032052,7]
[322257588,1712916649261,-500.0,0.00032053,7]
[322257590,1712916649270,-523.99,0.00032053,7]
[322257592,1712916649279,-903.78,0.00032054,7]
[322257594,1712916649288,-572.29,0.00032054,7]
[322257596,1712916649297,-631.89,0.00032135,30]
[322257598,1712916649306,-1170.56,0.00032326,7]
[322257600,1712916649315,-500.0,0.00032327,7]
[322257602,1712916649324,-523.99,0.00032327,7]
[322257604,1712916649333,-903.78,0.00032328,7]
[322257606,1712916649342,-572.29,0.00032328,7]
[322257608,1712916649351,-1170.56,0.000326,7]
[322257610,1712916649361,-500.0,0.00032601,7]
[322257612,1712916649370,-500.0,0.00032601,7]
[322257614,1712916649380,-523.99,0.00032601,7]
[322257616,1712916649389,-903.78,0.00032602,7]
[322257618,1712916649398,-572.29,0.00032602,7]
[322257620,1712916649407,-157.29628818,0.00032687,2]
[322257622,1712916649416,-1170.56,0.00032874,7]
[322257624,1712916649425,-500.0,0.00032875,7]
[322257626,1712916649434,-523.99,0.00032875,7]
[322257628,1712916649443,-903.78,0.00032876,7]
[322257630,1712916649453,-572.29,0.00032876,7]
[322257632,1712916649463,-1170.56,0.00033148,7]
[322257634,1712916649471,-500.0,0.00033149,7]
[322257636,1712916649481,-587.0,0.00033149,2]
[322257638,1712916649489,-523.99,0.00033149,7]
[322257640,1712916649499,-903.78,0.0003315,7]
[322257642,1712916649509,-572.29,0.0003315,7]
[322257644,1712916649518,-727.977047,0.00033165,2]
[322257646,1712916649527,-409.44625,0.00033165,2]
[322257648,1712916649536,-172.0,0.00033226,2]
[322257650,1712916649545,-211.37264862,0.00033422,4]
[322257652,1712916649554,-684.98533154,0.00033422,4]
[322257654,1712916649563,-1034.0293275,0.00033422,4]
[322257656,1712916649572,-1170.56,0.00033422,7]
[322257658,1712916649581,-161.25965534,0.00033423,4]
[322257660,1712916649590,-500.0,0.00033423,7]
[322257662,1712916649599,-523.99,0.00033423,7]
[322257664,1712916649609,-903.78,0.00033424,7]
[322257666,1712916649618,-572.29,0.00033424,7]
[322257668,1712916649628,-2580.65641681,0.00033696,4]
[322257670,1712916649640,-523.99,0.00033696,7]
[322257672,1712916649650,-1170.56,0.00033696,7]
[322257673,1712916649659,-500.0,0.00033697,7]
[322257675,1712916649669,-903.78,0.00033698,7]
[322257678,1712916649680,-572.29,0.00033698,7]
[322257679,1712916649689,-1210.78934384,0.0003392,2]
[322257682,1712916649698,-155.03087618,0.00033954,4]
[322257683,1712916649708,-491.74463034,0.00033954,4]
[322257685,1712916649717,-523.99,0.0003397,7]
[322257687,1712916649727,-1170.56,0.0003397,7]
[322257689,1712916649736,-500.0,0.00033971,7]
[322257691,1712916649747,-903.78,0.00033972,7]
[322257693,1712916649758,-572.29,0.00033972,7]
[322257695,1712916649768,-294.64650018,0.00033975,7]
[322257697,1712916649777,-465.00692251,0.00034,4]
[322257699,1712916649786,-294.64650018,0.00034232,7]
[322257701,1712916649795,-523.99,0.00034244,7]
[322257703,1712916649806,-1170.56,0.00034244,7]
[322257706,1712916649815,-181.26,0.00034245,7]
[322257707,1712916649825,-903.78,0.00034246,7]
[322257709,1712916649836,-572.29,0.00034246,7]
[322257711,1712916649846,-523.99,0.00034518,7]
[322257713,1712916649856,-1170.56,0.00034518,7]
[322257716,1712916649866,-903.78,0.0003452,7]
[322257717,1712916649875,-572.29,0.0003452,7]
[322257720,1712916649884,-294.64650018,0.00034642,7]
[322257721,1712916649895,-166.25855228,0.00034668,7]
[322257723,1712916649905,-523.99,0.00034792,7]
[322257725,1712916649915,-1170.56,0.00034792,7]
[322257727,1712916649925,-903.78,0.00034794,7]
[322257730,1712916649936,-572.29,0.00034794,7]
[322257731,1712916649948,-155.04639008,0.00034998,4]
[322257734,1712916649958,-167.11488346,0.00034999,4]
[322257736,1712916649968,-6953.91981241,0.00035,4]
[322257738,1712916649978,-155.11766014,0.00035,7]
[322257739,1712916649990,-154.82968734,0.00035,4]
[322257742,1712916650000,-544.88448692,0.00035,120]
[322257744,1712916650012,-632.76769938,0.00035,120]
[322257746,1712916650021,-669.27025172,0.00035,4]
[322257747,1712916650030,-1500.0,0.00035,2]
[322257750,1712916650040,-310.00126796,0.00035,7]
[322257752,1712916650049,-155.4058036,0.0003501,7]
[322257754,1712916650060,-524.00721137,0.00035066,7]
[322257755,1712916650070,-1170.56,0.00035066,7]
[322257758,1712916650081,-903.78,0.00035068,7]
[322257760,1712916650091,-572.29,0.00035068,7]
[322257762,1712916650101,-156.67054002,0.00035084,7]
[322257764,1712916650112,-154.10451123,0.00035214,7]
[322257765,1712916650123,-154.10451123,0.00035271,7]
[322257766,1712916650132,-154.10451123,0.00035292,7]
[322257767,1712916650141,-1170.56,0.0003534,7]
[322257768,1712916650151,-903.78,0.00035342,7]
[322257769,1712916650160,-572.29,0.00035342,7]
[322257770,1712916650169,-166.25855228,0.00035395,7]
[322257771,1712916650179,-294.64650018,0.00035419,7]
[322257772,1712916650188,-294.64650018,0.00035491,7]
[322257773,1712916650197,-166.25855228,0.00035532,7]
[322257774,1712916650208,-166.25855228,0.00035562,7]
[322257775,1712916650218,-1000.0,0.00035611,2]
[322257776,1712916650227,-157.29628818,0.00035612,2]
[322257777,1712916650238,-903.78,0.00035616,7]
[322257778,1712916650247,-2471.52654056,0.00035616,2]
[322257779,1712916650260,-459.87323446,0.00035616,7]
[322257781,1712916650269,-572.29,0.00035616,7]
[322257782,1712916650279,-4892.90576,0.00035616,120]
[322257784,1712916650288,-294.64650018,0.00035697,7]
[322257786,1712916650298,-157.44846143,0.00035703,7]
[322257788,1712916650309,-294.64650018,0.00035704,7]
[322257791,1712916650318,-1154.99,0.00035707,2]
[322257792,1712916650328,-1154.99,0.00035707,2]
[322257794,1712916650338,-1154.99,0.00035707,2]
[322257797,1712916650349,-1154.99,0.00035707,2]
[322257798,1712916650359,-1154.99,0.00035707,2]
[322257800,1712916650369,-1154.99,0.00035707,2]
[322257802,1712916650379,-1154.99,0.00035707,2]
[322257805,1712916650390,-1154.99,0.00035707,2]
[322257806,1712916650399,-1154.99,0.00035707,2]
[322257809,1712916650410,-1154.99,0.00035707,2]
[322257811,1712916650420,-1401.85013433,0.00035707,3]
[322257813,1712916650429,-42780.26383601,0.00035708,5]
[322257815,1712916650449,-86687.28127021,0.00035708,5]
[322257818,1712916650461,-151.0,0.00035708,2]
[322257820,1712916650472,-151.0,0.00035708,2]
[322257822,1712916650481,-151.0,0.00035708,2]
[322257823,1712916650491,-151.0,0.00035708,2]
[322257825,1712916650500,-151.0,0.00035708,2]
[322257827,1712916650511,-243.769577,0.00035708,2]
[322257829,1712916650521,-151.0,0.00035708,2]
[322257831,1712916650531,-151.0,0.00035708,2]
[322257833,1712916650541,-151.0,0.00035708,2]
[322257836,1712916650551,-151.0,0.00035708,2]
[322257838,1712916650562,-218.208384,0.00035708,2]
[322257839,1712916650572,-278.076073,0.00035708,2]
[322257841,1712916650581,-223.32,0.00035709,35]
[322257844,1712916650591,-151.0,0.00035712,2]
[322257845,1712916650602,-151.0,0.00035712,2]
[322257847,1712916650612,-151.0,0.00035712,2]
[322257849,1712916650622,-151.0,0.00035712,2]
[322257852,1712916650632,-151.331917,0.00035712,2]
[322257854,1712916650641,-63372.89328498,0.00035716,60]
[322257856,1712916650658,-48758.75960257,0.00035716,60]
[322262926,1712917645164,-160.13141061,0.00027297,2]
[322262927,1712917645197,-522.7857071,0.00027393,4]
[322262928,1712917645224,-250.0,0.00027396,2]
[322262929,1712917645251,-168.084084,0.00027397,2]
[322262930,1712917645275,-139.20373956,0.00029586,2]
[322263015,1712917832418,-306.37531601,0.00029586,2]
[322263016,1712917832427,-150.0,0.000315,2]
[322263020,1712917832437,-288.24444768,0.00032,2]
[322263563,1712917840467,-707.16,0.00032,2]
[322263566,1712917840479,-215.38489616,0.00032,2]
[322263568,1712917840488,-166.666666,0.00032276,2]
[322263570,1712917840498,-250.0,0.00033153,2]
[322263572,1712917840507,-702.39922259,0.00033154,4]
[322263574,1712917840516,-166.666666,0.00033156,2]
[322263576,1712917840525,-878.62351972,0.0003392,2]
[322264764,1712918826118,-522.7857071,0.00026999,4]
[322264765,1712918826140,-250.0,0.00026999,2]
[322264766,1712918826162,-366.76804041,0.00027,8]
[322264801,1712919032589,-698.24023631,0.00027,8]
[322264828,1712919038706,-2801.66928211,0.00027,8]
[322265086,1712919043876,-1590.44718061,0.00027,8]
[322265087,1712919043886,-306.37531601,0.00027,2]
[322265088,1712919043896,-655.179342,0.00027397,2]
[322265089,1712919043906,-247.77431208,0.00029586,2]
[322265090,1712919043915,-221.609,0.00030563,2]
[322265091,1712919043924,-250.0,0.00031898,2]
[322265092,1712919043934,-7.19692456,0.00031899,4]
[322265111,1712919293012,859.64569247,0.00028,120]
[322265112,1712920048102,-250.0,0.00024991,2]
[322265113,1712920048126,-522.7857071,0.00024992,4]
[322265114,1712920048147,-316.82341125,0.00025,2]
[322265115,1712920048170,-35.45339142,0.00027,2]
[322265132,1712920232790,-160.95729851,0.00027,2]
[322265133,1712920232805,-306.37531601,0.00027,2]
[322265134,1712920232815,-368.501625,0.00027397,2]
[322265135,1712920232826,-159.91979446,0.00027899,2]
[322265136,1712920232837,-300.0,0.00027999,2]
[322265137,1712920232849,-297.0,0.00027999,2]
[322265138,1712920232861,-11627.4316558,0.00028,2]
[322265139,1712920232870,-490.2206669,0.00030798,4]
[322265140,1712920232881,-420.0,0.00030799,2]
[322265141,1712920232890,-166.666666,0.00031299,2]
[322265142,1712920232901,-174.10604275,0.00031899,2]
[322265143,1712920232911,-1210.78934384,0.00032,2]
[322265144,1712920232923,-1210.78934384,0.00032,2]
[322265145,1712920232934,-166.666666,0.00032153,2]
[322265146,1712920232944,-3227.239387,0.00032215,2]
[322265147,1712920232954,-200.0,0.0003233,15]
[322265148,1712920232965,-250.0,0.00032802,2]
[322265149,1712920232976,-702.39922259,0.00032803,4]
[322265150,1712920232988,-337.24267828,0.00032804,6]
[322265151,1712920232998,-166.666666,0.00033006,2]
[322265152,1712920233008,-655.179342,0.00033165,2]
[322265153,1712920233018,-368.501625,0.00033165,2]
[322265154,1712920233029,-306.0,0.00033233,2]
[322265155,1712920233039,-153.0,0.00033233,2]
[322265156,1712920233050,-153.0,0.00033233,2]
[322265157,1712920233061,-153.0,0.00033233,2]
[322265158,1712920233070,-153.0,0.00033233,2]
[322265159,1712920233080,-153.0,0.00033256,2]
[322265160,1712920233090,-337.24267826,0.00033818,6]
[322265161,1712920233101,-166.666666,0.00033859,2]
[322265162,1712920233111,-587.0,0.00033879,2]
[322265163,1712920233121,-577.11930688,0.000339,30]
[322265164,1712920233132,-400.0,0.000339,3]
[322265165,1712920233142,-1210.78934384,0.0003392,2]
[322265166,1712920233150,-1210.78934384,0.0003392,2]
[322265167,1712920233159,-225.89565014,0.00033994,7]
[322265168,1712920233168,-465.00692251,0.00034026,4]
[322265169,1712920233177,-202.8732917,0.00034027,2]
[322265170,1712920233186,-153.0,0.00034055,2]
[322265171,1712920233195,-153.0,0.00034055,2]
[322265172,1712920233204,-153.0,0.00034055,2]
[322265173,1712920233212,-153.0,0.00034055,2]
[322265174,1712920233221,-306.0,0.00034055,2]
[322265175,1712920233230,-153.0,0.00034055,2]
[322265176,1712920233239,-153.0,0.00034055,2]
[322265177,1712920233248,-154.6513495,0.00034055,2]
[322265178,1712920233257,-306.0,0.00034055,2]
[322265179,1712920233266,-225.89565014,0.00034293,7]
[322265180,1712920233275,-157.44846143,0.00034361,7]
[322265181,1712920233285,-157.44846143,0.00034708,7]
[322265182,1712920233295,-166.666666,0.00034712,2]
[322265183,1712920233304,-337.24267826,0.00034831,7]
[322265184,1712920233314,-155.4058036,0.00034835,7]
[322265185,1712920233323,-479.64714324,0.00034928,2]
[322265186,1712920233333,-153.0,0.00034962,2]
[322265187,1712920233343,-153.0,0.00034962,2]
[322265188,1712920233353,-153.0,0.00034962,2]
[322265189,1712920233364,-153.0,0.00034962,2]
[322265190,1712920233373,-202.7924704,0.00034962,2]
[322265191,1712920233383,-202.8732917,0.00034962,2]
[322265192,1712920233392,-186.34148115,0.00034962,2]
[322265224,1712920238737,-16.53181055,0.00034962,2]
[322265225,1712920238746,-202.8732917,0.00034962,2]
[322265226,1712920238755,-202.8732917,0.00034962,2]
[322265227,1712920238765,-202.8732917,0.00034962,2]
[322265228,1712920238774,-202.8732917,0.00034962,2]
[322265229,1712920238785,-202.8732917,0.00034962,2]
[322265230,1712920238796,-157.44846143,0.00035064,7]
[322265231,1712920238807,-225.89565014,0.0003512,7]
[322265232,1712920238816,-225.89565014,0.00035124,7]
[322265233,1712920238825,-744.61976369,0.00035344,4]
[322265234,1712920238835,-166.666666,0.00035566,2]
[322265235,1712920238845,-159.91979446,0.0003561,2]
[322265236,1712920238855,-2224.37388654,0.0003561,2]
[322265237,1712920238865,-3124.24205912,0.00035616,120]
[322268452,1712921227156,-1155.11735654,0.00026949,2]
[322268453,1712921227179,-250.0,0.0002695,2]
[322268454,1712921227200,-339.4638276,0.0002695,2]
[322268455,1712921260833,150.0,0.0002485,2]
[322268456,1712921336657,2421.29797261,0.0002485,5]
[322268457,1712921354639,2421.29797261,0.0002485,5]
[322268458,1712921370647,2421.29797261,0.0002485,5]
[322268459,1712921388652,2421.29797261,0.0002485,5]
[322268491,1712921412670,2421.29797261,0.0002485,5]
[322268492,1712921428651,544.14470126,0.0002485,5]
[322268552,1712921437907,-2937.70369238,0.0002694,2]
[322268553,1712921437916,-1486.82464434,0.0002694,2]
[322268554,1712921437926,-522.7857071,0.0002694,4]
[322268555,1712921437935,-5787.41581827,0.00026941,2]
[322268556,1712921437944,-300.0,0.00026941,2]
[322268557,1712921437954,-364.86423922,0.00026999,2]
[322268558,1712921437963,-220.22760662,0.00027,2]
[322268559,1712921437972,-168.084084,0.00027397,2]
[322268560,1712921437982,-168.0841126,0.00027397,2]
[322268561,1712921437992,-420.0,0.00029635,2]
[322268562,1712921438001,-166.666666,0.00030401,2]
[322268563,1712921438012,-611.2090163,0.00031128,2]
[322268564,1712921438021,-166.666666,0.0003123,2]
[322268565,1712921438030,-250.0,0.00031543,2]
[322268566,1712921438039,-1155.11735654,0.00031544,4]
[322268567,1712921438048,-200.0,0.00031545,15]
[322268568,1712921438057,-1210.78934384,0.00032,2]
[322268569,1712921438067,-1210.66841003,0.00032,2]
[322268570,1712921438076,-166.666666,0.00032059,2]
[322268571,1712921438085,-587.0,0.00032599,2]
[322268572,1712921438095,-166.666666,0.00032888,2]
[322268573,1712921438104,-166.666666,0.00033716,2]
[322268574,1712921438113,-1210.78934384,0.0003392,2]
[322268575,1712921438122,-1210.66841003,0.0003392,2]
[322268576,1712921438131,-151.0,0.0003392,2]
[322268577,1712921438142,-195.77623012,0.00033949,7]
[322268578,1712921438154,-465.00692251,0.00034063,4]
[322268579,1712921438164,-154.10451123,0.00034064,7]
[322268580,1712921438178,-151.0,0.0003407,2]
[322268581,1712921438187,-195.77623012,0.00034259,7]
[322268582,1712921438196,-195.77623012,0.00034361,7]
[322268583,1712921438206,-166.666666,0.00034545,2]
[322268584,1712921438215,-500.0,0.00034554,7]
[322268585,1712921438224,-22236.01475232,0.00034555,10]
[322268586,1712921438234,-151.0,0.00034555,2]
[322268587,1712921438243,-151.0,0.00034555,2]
[322268588,1712921438254,-157.44846144,0.00034639,7]
[322268589,1712921438263,-155.40580361,0.00034707,7]
[322268590,1712921438272,-153.0,0.00034741,2]
[322268591,1712921438281,-153.0,0.00034741,2]
[322268592,1712921438290,-153.0,0.00034741,2]
[322268593,1712921438299,-195.77623012,0.000348,7]
[322268594,1712921438308,-151.0,0.00034878,2]
[322268595,1712921438318,-153.0,0.00034878,2]
[322268596,1712921438327,-153.0,0.00034878,2]
[322268597,1712921438336,-202.8732917,0.00034878,2]
[322268598,1712921438345,-306.0,0.00034878,2]
[322268599,1712921438354,-153.0,0.00034878,2]
[322268600,1712921438363,-405.6151019,0.00034878,2]
[322268601,1712921438372,-153.0,0.00034878,2]
[322268602,1712921438381,-153.0,0.00034878,2]
[322268603,1712921438390,-153.0,0.00034878,2]
[322268604,1712921438399,-153.0,0.00034878,2]
[322268605,1712921438409,-153.0,0.00034878,2]
[322268606,1712921438418,-153.0,0.00034878,2]
[322268607,1712921438428,-153.0,0.00034878,2]
[322268608,1712921438437,-255.36476752,0.000349,2]
[322268609,1712921438448,-195.77623012,0.00034914,7]
[322268610,1712921438458,-157.44846144,0.00034996,7]
[322268611,1712921438468,-151.0,0.00035,2]
[322268612,1712921438478,-151.0,0.00035,2]
[322268613,1712921438489,-151.0,0.00035,2]
[322268614,1712921438499,-267.283925,0.00035,2]
[322268615,1712921438509,-6546.25542381,0.00035,120]
[322268707,1712921439964,-2861.74457619,0.00035,120]
[322268709,1712921439975,-3370.0,0.00035,30]
[322268711,1712921439984,-3770.40796041,0.00035066,2]
[322268713,1712921439993,-151.0,0.00035066,2]
[322268715,1712921440002,-255.3647675,0.00035076,2]
[322268717,1712921440012,-195.77623012,0.00035101,7]
[322268719,1712921440021,-195.77623012,0.0003514,7]
[322268721,1712921440030,-255.3647675,0.00035251,2]
[322268722,1712921440039,-156.67956214,0.00035253,3]
[322268724,1712921440048,-153.6846932,0.00035342,2]
[322268726,1712921440057,-153.0,0.00035342,2]
[322268728,1712921440066,-153.0,0.00035342,2]
[322268730,1712921440075,-153.7270595,0.00035342,2]
[322268732,1712921440085,-448.9616777,0.00035342,2]
[322268734,1712921440094,-153.7875936,0.00035425,2]
[322268736,1712921440104,-255.3647675,0.00035427,2]
[322268738,1712921440113,-156.67054002,0.00035492,7]
[322268740,1712921440122,-195.77623012,0.00035545,7]
[322268742,1712921440131,-262.315156,0.00035551,2]
[322268744,1712921440140,-157.44846144,0.00035554,7]
[322268746,1712921440149,-973.96,0.00035598,7]
[322268748,1712921440158,-509.45213474,0.00035598,7]
[322268750,1712921440171,-500.0,0.00035598,7]
[322268752,1712921440180,-500.0,0.00035598,7]
[322268754,1712921440189,-500.0,0.00035598,7]
[322268756,1712921440198,-317.58798509,0.00035599,7]
[322268758,1712921440207,-500.0,0.00035599,7]
[322268759,1712921440216,-500.0,0.00035599,7]
[322268761,1712921440226,-500.0,0.00035599,7]
[322268763,1712921440236,-500.0,0.00035599,7]
[322268765,1712921440245,-500.0,0.00035599,7]
[322268767,1712921440255,-500.0,0.00035599,7]
[322268769,1712921440266,-511.17542956,0.00035599,7]
[322268771,1712921440275,-504.37624287,0.00035599,7]
[322268773,1712921440283,-500.0,0.00035599,7]
[322268775,1712921440293,-500.0,0.00035599,7]
[322268777,1712921440302,-500.0,0.00035599,7]
[322268779,1712921440311,-500.0,0.00035599,7]
[322268781,1712921440321,-500.0,0.00035599,7]
[322268783,1712921440331,-500.0,0.00035599,7]
[322268785,1712921440340,-500.0,0.00035599,7]
[322268787,1712921440349,-500.0,0.00035599,7]
[322268789,1712921440358,-500.0,0.00035599,7]
[322268791,1712921440367,-548.46,0.00035599,7]
[322268793,1712921440376,-500.0,0.00035599,7]
[322268795,1712921440386,-181.22390165,0.00035599,7]
[322268797,1712921440395,-218.36926205,0.00035599,7]
[322268799,1712921440404,-500.0,0.00035599,7]
[322268801,1712921440414,-500.0,0.00035599,7]
[322268803,1712921440423,-500.0,0.00035599,7]
[322268805,1712921440432,-500.0,0.00035599,7]
[322268807,1712921440440,-500.0,0.00035599,7]
[322268809,1712921440450,-500.0,0.00035599,7]
[322268811,1712921440459,-370.22733272,0.00035599,7]
[322268813,1712921440469,-500.0,0.00035599,7]
[322268815,1712921440478,-500.0,0.00035599,7]
[322268816,1712921440490,-500.0,0.00035599,7]
[322268819,1712921440499,-500.0,0.00035599,7]
[322268820,1712921440509,-500.0,0.00035599,7]
[322268822,1712921440519,-601.64,0.00035599,7]
[322268824,1712921440529,-24935.72,0.000356,2]
[322268826,1712921440540,-151.0,0.000356,2]
[322268828,1712921440551,-2000.0,0.00035602,2]
[322268831,1712921440563,-255.3647675,0.00035602,2]
[322268833,1712921440572,-151.0,0.00035609,2]
[322268835,1712921440581,-754.21396715,0.00035616,4]
[322268836,1712921440592,-747.19962463,0.00035616,4]
[322268838,1712921440601,-14918.49973839,0.00035616,4]
[322268841,1712921440613,-500.0,0.00035616,7]
[322268842,1712921440623,-500.0,0.00035616,7]
[322268844,1712921440632,-500.0,0.00035616,7]
[322268846,1712921440642,-197.08852906,0.00035616,7]
[322268848,1712921440652,-2888.618805,0.00035616,120]
[322268850,1712921440661,-195.77623012,0.00035617,7]
[322268852,1712921440671,-2001.93649785,0.0003562,2]
[322268855,1712921440681,-154.10451123,0.00035646,7]
[322268857,1712921440690,-153.0,0.00035699,2]
[322268858,1712921440699,-505.33291321,0.00035699,7]
[322268860,1712921440708,-500.0,0.00035699,7]
[322268863,1712921440719,-300.0,0.00035699,7]
[322268865,1712921440728,-516.66308847,0.00035699,7]
[322268866,1712921440737,-500.0,0.00035699,7]
[322268868,1712921440746,-331.51454962,0.00035699,7]
[322268870,1712921440755,-500.0,0.00035699,7]
[322268872,1712921440765,-500.0,0.00035699,7]
[322268875,1712921440775,-500.0,0.00035699,7]
[322268876,1712921440784,-574.86754931,0.00035699,7]
[322268878,1712921440794,-500.0,0.00035699,7]
[322268880,1712921440803,-500.0,0.00035699,7]
[322268882,1712921440812,-208.08537746,0.00035699,7]
[322268895,1712921440970,-291.91462254,0.00035699,7]
[322268896,1712921440979,-416.43537746,0.00035699,7]
[322269086,1712921443201,-167.66,0.00035599,7]
[322269088,1712921443211,-83.56462254,0.00035699,7]
[322269090,1712921443220,-101.87037746,0.00035699,7]
[322269092,1712921443231,-398.12962254,0.00035699,7]
[322269094,1712921443241,-500.0,0.00035699,7]
[322269096,1712921443250,-505.2499761,0.00035699,7]
[322269098,1712921443260,-500.0,0.00035699,7]
[322269100,1712921443270,-500.0,0.00035699,2]
[322269102,1712921443279,-361.1409828,0.00035699,7]
[322269104,1712921443288,-500.0,0.00035699,7]
[322269106,1712921443297,-598.26,0.00035699,7]
[322269108,1712921443306,-500.0,0.00035699,7]
[322269110,1712921443315,-2559.95370262,0.00035699,7]
[322269115,1712921443331,-1183.00629738,0.00035699,7]
[322269117,1712921443340,-769.18877998,0.000357,4]
[322269369,1712921446089,-4782.86009784,0.000357,4]
[322269370,1712921446099,-167.11488346,0.000357,4]
[322269371,1712921446108,-537.45185021,0.000357,4]
[322269372,1712921446118,-242.52421055,0.000357,4]
[322269373,1712921446127,-2119.45114629,0.000357,4]
[322269374,1712921446136,-1544.78067024,0.000357,4]
[322269375,1712921446145,-155.00173721,0.000357,4]
[322269376,1712921446154,-247.55776255,0.000357,7]
[322269377,1712921446165,-500.0,0.000357,7]
[322269378,1712921446262,-561.96387892,0.00035702,4]
[322269379,1712921446274,-1004.72650019,0.00035702,4]
[322269380,1712921446283,-147628.74379628,0.00035702,5]
[322269381,1712921446292,-71163.50789151,0.00035702,3]
[322269382,1712921446301,-160.65661429,0.00035708,10]
[322269383,1712921446310,-154.84515485,0.00035714,4]
[322269384,1712921446320,-670.4277393,0.00035714,4]
[322269385,1712921446329,-199.90497126,0.00035715,4]
[322269386,1712921446338,-500.0,0.00035719,15]
[322269387,1712921446348,-444.3831426,0.00035719,15]
[322269388,1712921446358,-500.0,0.00035719,15]
[322269389,1712921446368,-150.5,0.00035719,35]
[322269390,1712921446379,-7090.50915948,0.0003572,60]
[322269391,1712922427114,-364.86423922,0.00027266,2]
[322269392,1712922427135,-250.0,0.00027266,2]
[322269393,1712922427158,-601.81614276,0.00027267,2]
[322269394,1712922427290,-426.68312176,0.00027268,4]
[322269419,1712922632138,-740.37697055,0.00025168,2]
[322269421,1712922632147,-721.61409751,0.00027268,5]
[322269423,1712922632156,-522.7857071,0.00027295,4]
[322269425,1712922632167,-625.009616,0.00027397,2]
[322269427,1712922632177,-331.651462,0.00027397,2]
[322269429,1712922632186,-740.37697055,0.00030168,2]